Cogmind - Beta 14 @@@ ROGUE MODE // 2024.12.26 @ 20:38:07 Player: PTS Result: Self-destructed Performance ------------- Evolutions (2) 1000 Regions Visited (6) 1200 Robots Destroyed (35) 175 Value Destroyed (937) 937 Prototype IDs (23) 460 Alien Tech Used (0) 0 Bonus (300) 300 TOTAL SCORE: 4072 Bonus ------- Aligned with FarCom 300 Cogmind --------- Core Integrity 370/550 Matter 299/300 Energy 18/100 System Corruption 0% Temperature Cool (0) Movement Walking (120) Location -8/Materials Parts ------- > --- POWER (1) -------- (None) > --- PROPULSION (3) --- Aluminum Leg Aluminum Leg > --- UTILITY (4) ------ Improved Signal Interpreter Terrain Scanner Terrain Scan Processor > --- WEAPON (3) ------- Heavy Assault Rifle Makeshift Sword > --- INVENTORY (5) ---- Improved Hover Unit Cooling System Beam Rifle Gauss Rifle Peak State ------------ > --- POWER ------------ Light Deuterium Engine > --- PROPULSION ------- Hover Unit Hover Unit Backup Propulsion I > --- UTILITY ---------- Improved Terrain Scanner Terrain Scan Processor > --- WEAPON ----------- YOLO Cannon Makeshift Sword > --- INVENTORY -------- Light Deuterium Engine Cooling System Heavy Assault Rifle Heavy Assault Rifle Mining Laser [Rating: 36] Favorites ----------- Power Light Deuterium Engine Engine Light Deuterium Engine Power Core Light Nuclear Core Propulsion Hover Unit Leg Aluminum Leg Wheel Compact Wheel Hover Unit Hover Unit Utility Terrain Scan Processor Device Improved Terrain Scanner Storage Small Storage Unit Processor Terrain Scan Processor Weapon Makeshift Sword Energy Gun Beam Rifle Energy Cannon YOLO Cannon Ballistic Gun Assault Rifle Ballistic Cannon Improved Light Cannon Special Weapon Mining Laser Slashing Weapon Makeshift Sword Build | -11 -10 -9 -9 -9 -8 -8 ------- Run | Yrd Mat Mat Min Exi Min Mat Slots Evolved 4 | . . 2 . . . 2 Power . | . . . . . . . Propulsion 1 | . . 1 . . . . Utility 2 | . . . . . . 2 Weapon 1 | . . 1 . . . . Parts Attached 33 | 7 3 10 3 3 . 7 Power 3 | 1 . . 1 . . 1 Engine 2 | 1 . . 1 . . . Core 1 | . . . . . . 1 Reactor . | . . . . . . . Propulsion 8 | 2 . 3 . . . 3 Treads . | . . . . . . . Leg 2 | . . . . . . 2 Wheel 2 | 2 . . . . . . Hover 4 | . . 3 . . . 1 Flight . | . . . . . . . Utility 5 | 2 1 . . . . 2 Device 2 | 1 . . . . . 1 Storage 1 | 1 . . . . . . Processor 2 | . 1 . . . . 1 Hackware . | . . . . . . . Protection . | . . . . . . . Artifact . | . . . . . . . Weapon 17 | 2 2 7 2 3 . 1 Energy Gun 2 | . . 2 . . . . Energy Cannon 2 | . . . . 2 . . Ballistic Gun 7 | 2 1 2 1 . . 1 Ballistic Cannon 1 | . . 1 . . . . Launcher . | . . . . . . . Special Weapon 4 | . 1 2 . 1 . . Impact Weapon . | . . . . . . . Slashing Weapon 1 | . . . 1 . . . Piercing Weapon . | . . . . . . . Special Melee Weapon . | . . . . . . . Unidentified Prototypes 2 | . . . . 2 . . Parts Lost 8 | . . . . . 2 6 Power 2 | . . . . . . 2 Propulsion 4 | . . . . . 2 2 Utility 1 | . . . . . . 1 Weapon 1 | . . . . . . 1 Highest Loss Streak 3 | . . . . . 1 3 To Critical Strikes . | . . . . . . . Average Slot Usage (%) 80 | . 100 92 100 91 75 56 Engine 8 | . 14 11 11 11 11 3 Core 1 | . . . . . . 4 Wheel 3 | . 28 9 . . . . Hover 18 | . . 16 33 33 20 9 Device 10 | . 14 11 11 11 11 7 Processor 11 | . 9 11 11 11 11 13 Energy Gun 3 | . . 6 18 3 . . Energy Cannon 5 | . . . . 7 11 8 Ballistic Gun 7 | . 26 21 10 3 . . Slashing Weapon 7 | . . . 3 11 11 9 Peak Build Rating 36 | 9 10 14 20 36 36 36 Average Rating 26 | 5 9 12 16 30 34 34 On Entrance 17 | . 9 10 14 20 36 34 Naked Turns . | . . . . . . . Heaviest Build 26 | 13 13 12 14 26 26 26 Greatest Support 26 | 26 26 26 18 18 12 20 Greatest Overweight (x) 4 | . . 1 . 1 4 4 Average Overweight (x) . | . . . . . 2 3 Largest Inventory Capacity 8 | 8 8 5 5 5 5 5 Average Capacity 5 | 7 6 5 5 5 5 5 Most Carried 5 | 4 5 5 5 5 5 5 Average Carried 4 | . 2 4 4 4 4 4 Final Capacity 8 | 8 5 5 5 5 5 5 Final Carried 5 | 1 4 4 5 5 5 4 Class Distribution -------------------- 36% | Scavenger-Assassin 25% | Scavenger-Mutant 16% | Scavenger-Skirmisher 13% | Mutant 5% | Skirmisher Dominant Class ---------------- Mutant | -10/Materials Scavenger-Skirmisher | -9/Materials Scavenger-Skirmisher | -9/Mines Scavenger-Mutant | -9/Exiles Scavenger-Assassin | -8/Mines Scavenger-Assassin | -8/Materials Resources | -11 -10 -9 -9 -9 -8 -8 ----------- Run | Yrd Mat Mat Min Exi Min Mat Matter Collected 783 | 163 70 412 59 . 35 44 Remotely . | . . . . . . . Salvage Created 1060 | 17 70 521 15 . 149 288 Parts 72 | 4 3 31 . . 4 30 Haulers Intercepted . | . . . . . . . Recyclers Shooed 1 | . 1 . . . . . Parts Field Recycled . | . . . . . . . Retrieved Matter . | . . . . . . . Parts Self-Destructed . | . . . . . . . Prevented . | . . . . . . . Kills | -11 -10 -9 -9 -9 -8 -8 ------- Run | Yrd Mat Mat Min Exi Min Mat Combat Hostiles Destroyed 23 | . . 11 . . 4 8 Guns 10 | . . 10 . . . . Cannons 6 | . . 1 . . 1 4 AOE 6 | . . . . . 3 3 Classes Destroyed 11 | 1 2 5 . . 1 2 Worker 1 | . . . . . . 1 Builder 5 | . 1 . . . . 4 Tunneler 1 | 1 . . . . . . Recycler 1 | . 1 . . . . . Operator 1 | . . 1 . . . . Watcher 3 | . . 2 . . . 1 Swarmer 5 | . . . . . . 5 Grunt 11 | . . 7 . . 3 1 Brawler 1 | . . 1 . . . . Sentry 5 | . . 3 . . . 2 Hunter 1 | . . . . . 1 . Best Kill Streak 6 | 1 2 3 . . 3 6 Combat Bots Only 5 | . . 3 . . 3 5 Max Kills in Single Turn 3 | 1 1 1 . . 2 3 Gunslinging . | . . . . . . . Exploded 2 | . . . . . 2 2 Melee . | . . . . . . . Uniques/NPCs Destroyed . | . . . . . . . Combat | -11 -10 -9 -9 -9 -8 -8 -------- Run | Yrd Mat Mat Min Exi Min Mat Hostile Shots Fired 138 | . . 34 1 . 12 91 Missed 39 | . . 11 . . . 28 Damage Taken 1131 | . . 265 17 . 195 654 Core 251 | . . 34 15 . 22 180 Absorbed by Shields . | . . . . . . . Regen/Repaired (Parts) 70 | . . 70 . . . . Core Remaining (%) 94 | 100 100 . . . 82 . Volleys Fired 70 | 2 10 37 5 . 7 9 Largest 3 | 2 2 3 3 . 1 1 Hottest 143 | 40 100 143 119 . 100 100 Shots Fired 145 | 4 16 94 15 . 7 9 Gun 122 | 4 12 91 15 . . . Cannon 16 | . . . . . 7 9 Launcher . | . . . . . . . Special 7 | . 4 3 . . . . Kinetic 93 | 4 12 72 5 . . . Thermal 52 | . 4 22 10 . 7 9 Explosive . | . . . . . . . Electromagnetic . | . . . . . . . Robot Hit Streak 9 | 1 2 9 6 . 2 2 Robot Miss Streak 5 | 1 5 5 2 . 1 1 Penetration Max . | . . . . . . . Secondary Targets 1 | . . 1 . . . . Max Gunslinging Chain 1 | . . 1 . . . . Shots Hit Robots 86 | 2 4 61 8 . 2 9 Core Hits 44 | 1 4 23 4 . 5 7 Critical Kills 2 | . . 1 . . . 1 Critical Parts Destroyed 1 | . . 1 . . . . Critical Strikes 6 | . . 5 . . . 1 Burn 3 | . . 3 . . . . Meltdown 1 | . . . . . . 1 Destroy 2 | . . 2 . . . . Melee Attacks 7 | . . . . . . 7 Impact . | . . . . . . . Slashing 7 | . . . . . . 7 Piercing . | . . . . . . . Sneak Attacks 4 | . . . . . . 4 Combat Hostiles . | . . . . . . . Follow-up Attacks . | . . . . . . . Damage Inflicted 2927 | 20 51 856 122 . 597 1281 Guns 1025 | 20 51 832 122 . . . Cannons 748 | . . . . . 223 525 Explosions 808 | . . . . . 374 434 Melee 322 | . . . . . . 322 Ramming . | . . . . . . . Kinetic 762 | 20 51 659 32 . . . Thermal 1843 | . . 197 90 . 597 959 Explosive . | . . . . . . . Electromagnetic . | . . . . . . . Impact . | . . . . . . . Slashing 322 | . . . . . . 322 Piercing . | . . . . . . . Highest Corruption . | . . . . . . . Average Corruption . | . . . . . . . Corruption Purged . | . . . . . . . Corruption Blocked . | . . . . . . . Overload Shots . | . . . . . . . Overflow Damage 286 | . . . . . 11 275 Projectiles 115 | . . . . . 11 104 Explosions 87 | . . . . . . 87 Melee 84 | . . . . . . 84 Knockbacks . | . . . . . . . Impact . | . . . . . . . Kinetic . | . . . . . . . Secondary . | . . . . . . . Self-Inflicted Damage 66 | . . . . . . 66 Shots 1 | . . . . . . 1 Rammed . | . . . . . . . Targets Rammed . | . . . . . . . Kicked . | . . . . . . . Crushed . | . . . . . . . Highest Temperature 186 | . 60 186 171 . 58 28 Average Temperature 45 | . 31 56 70 . 28 8 Received Heat Transfer 267 | . . 150 . . 54 63 Siege Activations . | . . . . . . . Robots Corrupted . | . . . . . . . Combat Hostiles . | . . . . . . . Parts Fried . | . . . . . . . Impact Corruptions . | . . . . . . . Robots Melted 1 | . . . . . . 1 Combat Hostiles 1 | . . . . . . 1 Parts Melted 4 | . . 1 . . . 3 Heat Transferred 2539 | . . 716 223 . 640 960 Parts Sabotaged . | . . . . . . . Parts Stolen . | . . . . . . . Parts Stripped . | . . . . . . . Power Chain Reactions . | . . . . . . . Alert | -11 -10 -9 -9 -9 -8 -8 ------- Run | Yrd Mat Mat Min Exi Min Mat Peak Influence 262 | 5 31 262 86 . 182 261 Initial 71 | . 3 13 71 . . 70 Average 81 | 2 16 122 84 . 107 63 Maximum Alert Level 1 | . . 1 . . . 1 Low Security (%) 93 | 100 100 76 100 . 100 96 Level 1 6 | . . 23 . . . 3 Level 2 . | . . . . . . . Level 3 . | . . . . . . . Level 4 . | . . . . . . . Level 5 . | . . . . . . . High Security . | . . . . . . . Max Security . | . . . . . . . Squads Dispatched 3 | . . 1 . . . 2 Investigation 1 | . . . . . . 1 Extermination . | . . . . . . . Reinforcement 2 | . . 1 . . . 1 Assault . | . . . . . . . Garrison . | . . . . . . . Intercept . | . . . . . . . Searches Triggered . | . . . . . . . Construction Impeded 1 | . . . . . . 1 Haulers Reinforced . | . . . . . . . Active Scanning Responses . | . . . . . . . Cargo Convoy Interrupts . | . . . . . . . Stealth | -11 -10 -9 -9 -9 -8 -8 --------- Run | Yrd Mat Mat Min Exi Min Mat Distress Signals 3 | . . 2 . . . 1 Communications Jammed . | . . . . . . . Distress Signals . | . . . . . . . Times Spotted 42 | . 2 14 7 . 3 16 Peak Tracking Total 14 | . 2 4 14 . 2 6 Tactical Retreats 3 | . . . . . . 3 Traps | -11 -10 -9 -9 -9 -8 -8 ------- Run | Yrd Mat Mat Min Exi Min Mat Traps Triggered 1 | . . . . . . 1 Indirectly . | . . . . . . . Trap Hack Attempts . | . . . . . . . Triggered . | . . . . . . . Disarmed . | . . . . . . . Reprogrammed . | . . . . . . . Reused . | . . . . . . . Traps Extracted . | . . . . . . . Installed . | . . . . . . . Triggered . | . . . . . . . Machines | -11 -10 -9 -9 -9 -8 -8 ---------- Run | Yrd Mat Mat Min Exi Min Mat Machines Disabled 3 | . . . . . 1 2 Max in Single Turn 1 | . . . . . 1 1 Machines Repaired . | . . . . . . . Machines Dismantled . | . . . . . . . Machines Sabotaged . | . . . . . . . Overloaded Fab Kills . | . . . . . . . Hacking | -11 -10 -9 -9 -9 -8 -8 --------- Run | Yrd Mat Mat Min Exi Min Mat Machines Accessed 7 | . . 2 . 5 . . Terminals . | . . . . . . . Fabricators . | . . . . . . . Repair Stations 1 | . . 1 . . . . Recycling Units 1 | . . 1 . . . . Scanalyzers . | . . . . . . . Garrison Access . | . . . . . . . Total Hacks 57 | . . 7 . 50 . . Successful 57 | . . 7 . 50 . . Failed . | . . . . . . . Catastrophic . | . . . . . . . Database Lockouts . | . . . . . . . Manual 4 | . . . . 4 . . Terminals . | . . . . . . . Fabricators . | . . . . . . . Repair Stations 5 | . . 5 . . . . Recycling Units 2 | . . 2 . . . . Scanalyzers . | . . . . . . . Garrison Access . | . . . . . . . Terminal Hacks 50 | . . . . 50 . . Record 49 | . . . . 49 . . Derelict Proto ID Bank 1 | . . . . 1 . . Fabricator Hacks . | . . . . . . . Repair Station Hacks 5 | . . 5 . . . . Scan Component 2 | . . 2 . . . . Repair 2 | . . 2 . . . . Refit 1 | . . 1 . . . . Recycling Unit Hacks 2 | . . 2 . . . . Report Inventory 1 | . . 1 . . . . Retrieve Components 1 | . . 1 . . . . Scanalyzer . | . . . . . . . Garrison Access Hacks . | . . . . . . . Unauthorized Hacks . | . . . . . . . Terminals . | . . . . . . . Fabricators . | . . . . . . . Repair Stations . | . . . . . . . Recycling Units . | . . . . . . . Scanalyzers . | . . . . . . . Garrison Access . | . . . . . . . Data Cores Recovered . | . . . . . . . Used . | . . . . . . . Hacking Detections 2 | . . 2 . . . . Full Trace Events . | . . . . . . . Feedback Events . | . . . . . . . Feedback Blocked . | . . . . . . . Robot Schematics Acquired . | . . . . . . . Robots Built . | . . . . . . . Authchips . | . . . . . . . Time . | . . . . . . . Total Robot Build Rating . | . . . . . . . Part Schematics Acquired . | . . . . . . . Parts Built . | . . . . . . . Authchips . | . . . . . . . Time . | . . . . . . . Total Part Build Rating . | . . . . . . . Parts Repaired 2 | . . 2 . . . . Time 58 | . . 58 . . . . Parts Recycled . | . . . . . . . Recycled Matter . | . . . . . . . Retrieved Matter . | . . . . . . . Retrieved Components 6 | . . 6 . . . . Parts Scanalyzed . | . . . . . . . Part Schematics Acquired . | . . . . . . . Parts Damaged . | . . . . . . . Bothacking | -11 -10 -9 -9 -9 -8 -8 ------------ Run | Yrd Mat Mat Min Exi Min Mat Used RIF Installer . | . . . . . . . Robots Hacked . | . . . . . . . Non-combat . | . . . . . . . Combat . | . . . . . . . Robot Hacks Applied . | . . . . . . . Relay Couplers Released . | . . . . . . . Fabnet Peak Effective % . | . . . . . . . Robots Rewired . | . . . . . . . Allies Hacked . | . . . . . . . Hacks Repelled . | . . . . . . . Allies | -11 -10 -9 -9 -9 -8 -8 -------- Run | Yrd Mat Mat Min Exi Min Mat Total Allies . | . . . . . . . Largest Group . | . . . . . . . Highest-Rated Group . | . . . . . . . Highest-Rated Ally . | . . . . . . . Total Orders . | . . . . . . . Ally Attacks . | . . . . . . . Total Damage . | . . . . . . . Kills . | . . . . . . . Allies Corrupted . | . . . . . . . Allies Melted . | . . . . . . . Intel | -11 -10 -9 -9 -9 -8 -8 ------- Run | Yrd Mat Mat Min Exi Min Mat Robot Analysis Total . | . . . . . . . Derelict Logs Recovered 1 | . . . 1 . . . Drone Launches . | . . . . . . . Drone Recoveries . | . . . . . . . Exploration | -11 -10 -9 -9 -9 -8 -8 ------------- Run | Yrd Mat Mat Min Exi Min Mat Turns Passed 2764 | 61 182 500 201 626 369 825 Spaces Moved 1654 | 50 119 312 208 653 115 197 Core 12 | 12 . . . . . . Treads . | . . . . . . . Legs 9 | . . . . . . 9 Wheels 259 | 38 119 102 . . . . Hover 1374 | . . 210 208 653 115 188 Flight . | . . . . . . . Fastest Speed 50 | 50 90 56 58 58 176 116 Average Speed 107 | 80 90 68 58 91 188 243 Slowest Speed 300 | 90 90 130 58 124 300 300 Overloaded Moves . | . . . . . . . Propulsion Burnouts . | . . . . . . . Robots Hopped . | . . . . . . . Cave-ins Triggered . | . . . . . . . Exploration Rate (%) 33 | 3 30 23 49 91 26 10 Regions Visited 6 Branch Regions 3 Pre-discovered Areas 2 | . . . 1 1 . . Known Exits Taken . | . . . . . . . Unknown Exits Taken 6 | 1 1 1 1 1 1 . Scrap Searched 1 | . . . 1 . . . Spaces Dug 16 | . 3 1 . . 12 . Terrain Destroyed 192 | . 4 1 . . 102 85 Melee . | . . . . . . . Projectile 14 | . 4 1 . . 5 4 AOE 178 | . . . . . 97 81 Terrain Rammed . | . . . . . . . Walls Destroyed . | . . . . . . . Machines Disabled . | . . . . . . . Actions | -11 -10 -9 -9 -9 -8 -8 --------- Run | Yrd Mat Mat Min Exi Min Mat Total 2464 | 66 168 516 278 681 249 506 Wait 653 | . 32 137 57 18 124 285 Move 1648 | 49 118 311 207 652 114 197 Hop . | . . . . . . . Pick Up 29 | 8 4 10 2 2 2 1 Fast Attach 12 | . . 3 1 3 . 5 Attach 13 | 7 . 4 . . . 2 Detach 1 | . . 1 . . . . Swap 8 | . 3 3 2 . . . Drop 22 | . 1 10 3 6 2 . Fire 70 | 2 10 37 5 . 7 9 Melee 7 | . . . . . . 7 Ram . | . . . . . . . Kick . | . . . . . . . Crush . | . . . . . . . Escape Stasis . | . . . . . . . Rewire 1 | . . . 1 . . . Trap . | . . . . . . . Miscellaneous . | . . . . . . . Route ------- -11/Scrapyard -10/Materials (discovered 2 exits: *Mat / [*Min]) -9/Materials -9/Mines (discovered 2 exits: *Exi / [*Zio]) -9/Exiles -8/Mines -8/Materials History --------- Turn | Location | Event 4 | -11/Scrapyard | Discovered new exit (range 16) 62 | -11/Scrapyard | Entered Materials 193 | -10/Materials | Discovered new exit (range 7) 230 | -10/Materials | Discovered new exit (range 15) 244 | -10/Materials | Entered another Materials area 244 | -9/Materials | Evolved 2 slots: Propulsion x1, Weapon x1 551 | -9/Materials | Repaired Hover Unit 584 | -9/Materials | Repaired Hvy. Assault Rifle 639 | -9/Materials | Discovered new exit (range 14) 744 | -9/Materials | Entered Mines 758 | -9/Mines | Assembled infested the area 771 | -9/Mines | Learned location of Storage (-8) 776 | -9/Mines | Met 8R-AWN 841 | -9/Mines | A Derelict revealed a hidden shortcut to a safe place 880 | -9/Mines | Build established: Scavenger-Skirmisher 882 | -9/Mines | A weapon hastily lodged in a ceiling crevice suddenly fell to the ground 909 | -9/Mines | Found a hidden stash of uninstalled traps 939 | -9/Mines | Discovered new exit (range 5) 945 | -9/Mines | Entered Exiles 959 | -9/Exiles | Welcomed by 8R-AWN 973 | -9/Exiles | Met EX-HEX 1000 | -9/Exiles | Met EX-DEC 1033 | -9/Exiles | Learned location of Zion (-7) 1060 | -9/Exiles | Discovered new exit (range 14) 1099 | -9/Exiles | Met EX-BIN 1109 | -9/Exiles | Aligned with FarCom system 1109 | -9/Exiles | Given EX-Vault access code 1141 | -9/Exiles | Opened EX-Vault 1145 | -9/Exiles | Found Prototype Energy Cannon 1145 | -9/Exiles | Identified YOLO Cannon 1149 | -9/Exiles | Found Prototype Special Weapon 1149 | -9/Exiles | Identified Field Lobotomy Kit 1187 | -9/Exiles | Warned to stay clear of 0b10 Research branches 1196 | -9/Exiles | Build established: Scavenger-Mutant 1378 | -9/Exiles | Visited The Gauntlet 1571 | -9/Exiles | Left Exiles lab with YOLO Cannon 1571 | -9/Exiles | Entered Mines 1793 | -8/Mines | Discovered new exit (range 11) 1858 | -8/Mines | Build established: Scavenger-Assassin 1940 | -8/Mines | Entered Materials 1940 | -8/Materials | Evolved 2 slots: Utility x2 2290 | -8/Materials | Lost 3 parts (1p1n1u) 2765 | -8/Materials | Self-destructed Last Messages --------------- G-47 Trooper destroyed. U-05 Engineer lays Concrete. K-01 Serf collects debris. U-05 Engineer builds a Wall. Acquired Aluminum Leg. K-01 Serf collects debris. U-05 Engineer lays Concrete. U-05 Engineer builds a Wall. K-01 Serf collects debris. Acquired Aluminum Leg. YOLO Cannon destroyed. K-01 Serf collects debris. U-05 Engineer lays Concrete. Sneak attack on U-05 Engineer. U-05 Engineer destroyed. K-01 Serf collects debris. Imp. Hover Unit destroyed. Acquired 19 matter. R-06 Scavenger collects Imp. Ion Engine. K-01 Serf collects debris. Map ----- +----------------------------------------------------+ | | | | | | | | | ?????????????????#??#####??#?###################?? | | ???????????????????###?########### ####?######## | | ????????????#???###?#?########### #########?#? | | ??????????????#?##??######################?####### | | ?????????????#???############### ########?# | | ??????????????#?## # # + ## ? | | ?????????? ????## """ " # #=% #### ## | | ???????????? ????# "Y" " # #% #### ## | | ???????????? ??### " + /= #### ## ? | | ?????????????? ?## " # # #### ## | | ????????#??"? ?## " ! # # #### ##? | | ??????????? ### g ! *# * # + ## | | ?????????#? ###### g = #= # #### ## | | ????????#?################## ############# ## | | ???????#?#####?############# # ##### ##+## | | ?????? # ############# + ##### | | ?????# # ############# # ##### | | ?????# + ############# ############# | | ????[# """"################# ##########?####?### | | ??? " """;;;;; ;;;####### ########## ? ??# | | ??? "=!=% ########?# ? # | | ??? " *%[ k !! @ T #####?#### ? ? ?# | | ?"? " % %= = | #####?##?# ? ? | | ??" """ %####### g ##?#?#?### ????? | | "?? # "s "#######+#####?####??#?##???? | | ????### " s! " ### #?###?####?#???? | | #???####+###" "#### """""??#?####?#??????? | | ??? # """###?# """"" ##Y###?????????? | | ?" ??" """ # ##### g""""? ?? ????????????? | | ?????" ?"? # """##### g ?????????????????? | | ?? ""? """ # """##### "???"????????????????? | | ????? # """##### "?""?????????????????? | | ????? # ##### "?"??????????????????? | | ??#??#?##??############### ????????????????????? | | ????? ?? ? ######?##??????????????????? | | ??? ??? ? ??????????????????????? | | ???? ?? ? ? ???????????????????????? | | ???? ?? ??? ? ? ? ??????????????????????? | | ???????? ? ??? #?#??????????????????????????????? | | ???????#???#+?#?#???# ???o ??????????????????????? | | ??????? ?? ?????????? ##?????????????????????????? | | ??????????? ??? ????+???????????????????????????? | | ???????????? "?"??#??????????????????????????????? | | ???????????"??""???? ????????????????????????????? | | ???????????????? ????????????????????????????????? | | ?????????????????????????????????????????????????? | +----------------------------------------------------+ Best States ------------- Heat Dissipation 31 Energy Generation 14 Energy Capacity 160 Matter Stores 300 Matter Capacity 300 Sight Range 16 Terrain Scan Range 16 Terrain Scan Density 85 Evasion (%) 53 Item Schematics ----------------- None Robot Schematics ------------------ None Fabricated ------------ Nothing Alien Tech Used ----------------- None Achievements -------------- None Challenges ------------ None Game ------ Seed ModifiedRestorationMantle Manual? 0 Play Time 00:41:18 Cumulative 9.6 hours Start 2024.12.26 @ 19:41:05 End 2024.12.26 @ 20:38:07 Sessions 3 Manual Loads 0 Difficulty Rogue Special Mode None Game No. 16 Rogue 16 Adventurer 0 Explorer 0 Win Type - Total 0 Types 0/0/0/0/0/0/0/0/0 Lore% 11 Gallery% 18 Achievement% 18 Wizard Run 0 Options --------- Layout 1 ASCII 0 Keyboard 0 Movement Mouse Keybinds 0 Fullscreen 1 Font 24/Smallcaps Map View 50x35 Zoom Use 0% Tactical HUD 0 Map Filters NONE Filters NONE Steam 1 RUN: 83869f3e-0789-4d3f-be7f-c0900434a92f